Cogmind - Beta 16.1 @@@ ROGUE MODE // 2026.03.21 @ 02:04:58 Player: TheSkyeDoctor Result: Destroyed by Y-45 Defender with Heavy Assault Rifle Performance ------------- Evolutions (1) 500 Regions Visited (3) 600 Robots Destroyed (46) 230 Value Destroyed (919) 919 Prototype IDs (1) 20 Alien Tech Used (0) 0 Bonus (0) 0 TOTAL SCORE: 2269 Bonus ------- None Cogmind --------- Core Integrity 0/400 Matter 295/300 Energy 245/250 System Corruption 0% Temperature Cool (9) Movement Rolling (125) Ox3 Location -9/Storage Parts ------- > --- POWER (1) -------- Ion Engine > --- PROPULSION (2) --- Wheel > --- UTILITY (4) ------ Large Storage Unit Hardened Light Armor Plating > --- WEAPON (2) ------- Improved Lightning Gun Heavy Hammer > --- INVENTORY (15) --- Beam Rifle Beam Rifle Grenade Launcher Grenade Launcher Heavy Hammer Peak State ------------ > --- POWER ------------ Light Ion Engine > --- PROPULSION ------- Wheel Wheel > --- UTILITY ---------- Improved Heat Sink Large Storage Unit Improved Terrain Scanner Medium Armor Plating > --- WEAPON ----------- EM Pulse Gun Heavy Hammer > --- INVENTORY -------- Light Ion Engine Hammer [Rating: 15] Favorites ----------- Power Ion Engine Engine Ion Engine Propulsion Light Treads Treads Light Treads Wheel Wheel Utility Large Storage Unit Device Seismic Detector Storage Large Storage Unit Protection Hardened Light Armor Plating Weapon Heavy Hammer Energy Gun EM Pulse Gun Ballistic Gun Assault Rifle Ballistic Cannon Improved Light Cannon Launcher Grenade Launcher Impact Weapon Heavy Hammer Build | -11 -10 -9 -9 ------- Run | Yrd Mat Mat Sto Slots Evolved 2 | . . 2 . Power . | . . . . Propulsion . | . . . . Utility 2 | . . 2 . Weapon . | . . . . Parts Attached 27 | 7 4 3 13 Power 4 | 1 . 1 2 Engine 4 | 1 . 1 2 Core . | . . . . Reactor . | . . . . Propulsion 4 | 2 . . 2 Treads 2 | 2 . . . Leg . | . . . . Wheel 2 | . . . 2 Hover . | . . . . Flight . | . . . . Utility 10 | 2 2 2 4 Device 3 | 1 . 2 . Storage 3 | 1 2 . . Processor . | . . . . Hackware . | . . . . Protection 4 | . . . 4 Artifact . | . . . . Weapon 9 | 2 2 . 5 Energy Gun 3 | 1 . . 2 Energy Cannon . | . . . . Ballistic Gun 1 | 1 . . . Ballistic Cannon 1 | . . . 1 Launcher 1 | . 1 . . Special Weapon . | . . . . Impact Weapon 3 | . 1 . 2 Slashing Weapon . | . . . . Piercing Weapon . | . . . . Special Melee Weapon . | . . . . Unidentified Prototypes 1 | . . . 1 Parts Lost 16 | . . 3 13 Power 3 | . . 1 2 Propulsion 3 | . . 1 2 Utility 6 | . . . 6 Weapon 4 | . . 1 3 Highest Loss Streak 6 | . . 3 6 To Critical Strikes . | . . . . Average Backups 4 | 3 6 4 4 Power . | . 1 . . Propulsion 1 | 1 2 2 . Utility . | . 1 . . Weapon 1 | . 1 1 2 Tool/Special . | . . . . Unused Backups 5 | 2 . . 3 Power . | . . . . Propulsion 1 | 1 . . . Utility 1 | 1 . . . Weapon 3 | . . . 3 Tool/Special . | . . . . Average Slot Usage (%) 89 | . 100 90 82 Engine 10 | . 14 9 9 Treads 12 | . 28 15 2 Wheel 5 | . . . 10 Device 15 | . 14 32 12 Storage 11 | . 14 11 11 Protection 8 | . . . 16 Energy Gun 5 | . 7 . 5 Ballistic Gun 4 | . 14 3 . Launcher 2 | . . 6 2 Impact Weapon 10 | . 6 11 12 Peak Build Rating 15 | 7 8 13 15 Average Rating 9 | 5 7 12 11 On Entrance 6 | . 7 8 12 Avg Prop Armor Cover (%) . | . . . . Naked Turns . | . . . . Heaviest Build 42 | 15 30 32 42 Greatest Support 40 | 40 40 40 20 Greatest Overweight (x) 4 | . . 1 4 Average Overweight (x) 1 | . . . 2 Largest Inventory Capacity 15 | 8 15 15 15 Average Capacity 13 | 7 11 15 15 Most Carried 8 | 4 8 6 6 Average Carried 4 | 3 6 4 4 Final Capacity 15 | 8 15 15 15 Final Carried 7 | 4 7 4 5 Class Distribution -------------------- 87% | Mutant 12% | Scavenger-Mutant Dominant Class ---------------- Mutant | -10/Materials Mutant | -9/Materials Mutant | -9/Storage Resources | -11 -10 -9 -9 ----------- Run | Yrd Mat Mat Sto Matter Collected 810 | 288 74 34 414 Remotely . | . . . . Salvage Created 1297 | 142 183 262 710 Parts 74 | 20 9 27 18 Haulers Intercepted 2 | . . 1 1 Recyclers Shooed 1 | . . 1 . Parts Field Recycled . | . . . . Retrieved Matter . | . . . . Parts Self-Destructed . | . . . . Prevented . | . . . . Parts Restored . | . . . . Kills | -11 -10 -9 -9 ------- Run | Yrd Mat Mat Sto Combat Hostiles Destroyed 22 | . 4 8 10 Melee 8 | . 1 2 5 Guns 4 | . 1 1 2 Cannons 1 | . . . 1 AOE 5 | . . 4 1 Classes Destroyed 10 | 3 2 4 1 Worker 6 | 1 . 1 4 Builder 2 | . . 1 1 Tunneler 7 | 4 . 3 . Hauler 2 | . . 1 1 Recycler 4 | 1 . 1 2 Mechanic 1 | . . . 1 Watcher 2 | . 1 1 . Swarmer 4 | . . 4 . Grunt 9 | . 4 1 4 Sentry 9 | . . 3 6 Best Kill Streak 9 | 2 3 9 6 Combat Bots Only 5 | . 3 5 2 Max Kills in Single Turn 2 | 1 1 2 2 Gunslinging . | . . . . Exploded 1 | . . 1 1 Melee 1 | . 1 1 1 Uniques/NPCs Destroyed . | . . . . Combat | -11 -10 -9 -9 -------- Run | Yrd Mat Mat Sto Hostile Shots Fired 214 | . 40 54 120 Missed 65 | . 13 19 33 Hits 149 | . 27 35 87 Projectile 149 | . 27 35 87 Critical Strikes 2 | . . . 2 Damage Taken 2058 | . 335 427 1296 Core 446 | . 31 143 272 Absorbed by Shields . | . . . . Core Remaining (%) 93 | 100 87 . . Volleys Fired 78 | 15 5 26 32 Largest 2 | 2 2 1 2 Hottest 89 | 60 60 30 89 Shots Fired 101 | 30 8 26 37 Gun 62 | 30 8 6 18 Cannon 16 | . . . 16 Launcher 23 | . . 20 3 Special . | . . . . Kinetic 42 | 15 5 6 16 Thermal 8 | . . . 8 Explosive 23 | . . 20 3 Electromagnetic 28 | 15 3 . 10 Robot Hit Streak 15 | 4 3 15 7 Robot Miss Streak 3 | 3 1 3 1 Penetration Max . | . . . . Secondary Targets . | . . . . Shots Hit Robots 113 | 16 12 27 58 Core Hits 51 | 7 3 25 16 Critical Kills . | . . . . Critical Parts Destroyed 7 | . 2 . 5 Critical Strikes 12 | . 2 . 10 Burn 1 | . . . 1 Blast 2 | . . . 2 Smash 9 | . 2 . 7 Melee Attacks 62 | . 11 12 39 Impact 62 | . 11 12 39 Slashing . | . . . . Piercing . | . . . . Sneak Attacks 8 | . . . 8 Combat Hostiles . | . . . . Follow-up Attacks . | . . . . Damage Inflicted 3092 | 206 264 755 1867 Guns 489 | 206 55 62 166 Cannons 251 | . . . 251 Explosions 619 | . . 529 90 Melee 1733 | . 209 164 1360 Ramming . | . . . . Kinetic 421 | 96 12 62 251 Thermal 74 | . . . 74 Explosive 619 | . . 529 90 Electromagnetic 245 | 110 43 . 92 Impact 1733 | . 209 164 1360 Slashing . | . . . . Piercing . | . . . . Highest Corruption . | . . . . Average Corruption . | . . . . Corruption Purged . | . . . . Corruption Blocked . | . . . . Overload Shots . | . . . . Overflow Damage 453 | . 51 13 389 Projectiles . | . . . . Explosions . | . . . . Melee 453 | . 51 13 389 Knockbacks 7 | . . . 7 Impact 5 | . . . 5 Kinetic 2 | . . . 2 Secondary . | . . . . Self-Inflicted Damage 14 | . . 14 . Shots 2 | . . 2 . Rammed 1 | 1 . . . Targets Rammed 1 | 1 . . . Kicked . | . . . . Crushed . | . . . . Highest Temperature 18 | . 18 . 17 Average Temperature 8 | . 13 . 4 Received Heat Transfer 747 | . 162 123 462 Siege Activations . | . . . . Martial Activations . | . . . . Shielding Activations . | . . . . Robots Disrupted . | . . . . Combat Hostiles . | . . . . Robots Corrupted 8 | . 2 1 5 Combat Hostiles 4 | . 2 1 1 Parts Fried 17 | . 5 . 12 Impact Corruptions 23 | . 3 3 17 Robots Melted . | . . . . Combat Hostiles . | . . . . Parts Melted . | . . . . Heat Transferred 259 | . . . 259 Parts Sabotaged . | . . . . Parts Stolen . | . . . . Parts Stripped . | . . . . Power Chain Reactions . | . . . . Alert | -11 -10 -9 -9 ------- Run | Yrd Mat Mat Sto Maximum Alert Level . | . . . . Low Security (%) 100 | 100 100 100 100 Level 1 . | . . . . Level 2 . | . . . . Level 3 . | . . . . Level 4 . | . . . . Level 5 . | . . . . High Security . | . . . . Max Security . | . . . . Peak Influence 185 | 5 60 185 110 Initial 73 | . . . 73 Average 40 | 1 11 87 57 Influence Increases 868 | 30 112 305 421 Destroy 0b10 Robot/C 440 | . 80 160 200 Destroy 0b10 Robot/NC 120 | 30 5 40 45 Destroy Leader 118 | . 12 44 62 Successful Hack 9 | . . . 9 Disable Machine 45 | . . . 45 Destroy Structure 91 | . . 61 30 Partial Spotted 15 | . 15 . . Lose Combat Pursuer 30 | . . . 30 Influence Decreases 814 | 30 112 130 542 Entered New Map 102 | . . . 102 Time Decay 552 | 30 112 100 310 Lost Part 160 | . . 30 130 Squads Dispatched 5 | . 2 . 3 Investigation 1 | . 1 . . Extermination . | . . . . Reinforcement 1 | . 1 . . Assault . | . . . . Garrison 3 | . . . 3 Intercept . | . . . . Searches Triggered . | . . . . Construction Impeded . | . . . . Haulers Reinforced . | . . . . Active Scanning Responses . | . . . . Cargo Convoy Interrupts . | . . . . Stealth | -11 -10 -9 -9 --------- Run | Yrd Mat Mat Sto Distress Signals 2 | . 1 1 . Communications Jammed . | . . . . Distress Signals . | . . . . Times Spotted 29 | . 7 10 12 Peak Tracking Total 5 | . 5 4 4 Tactical Retreats 2 | . . . 2 Traps | -11 -10 -9 -9 ------- Run | Yrd Mat Mat Sto Traps Triggered 3 | . 2 . 1 Indirectly . | . . . . Trap Hack Attempts . | . . . . Triggered . | . . . . Disarmed . | . . . . Reprogrammed . | . . . . Reused . | . . . . Traps Extracted . | . . . . Installed . | . . . . Triggered . | . . . . Machines | -11 -10 -9 -9 ---------- Run | Yrd Mat Mat Sto Machines Disabled 3 | . . . 3 Max in Single Turn 2 | . . . 2 Garrison Access 1 | . . . 1 Machines Repaired . | . . . . Machines Dismantled . | . . . . Machines Sabotaged . | . . . . Overloaded Fab Kills . | . . . . Hacking | -11 -10 -9 -9 --------- Run | Yrd Mat Mat Sto Machines Accessed 4 | . . . 4 Terminals 3 | . . . 3 Fabricators . | . . . . Repair Stations . | . . . . Recycling Units . | . . . . Scanalyzers . | . . . . Garrison Access 1 | . . . 1 Total Hacks 9 | . . . 9 Successful 4 | . . . 4 Failed 5 | . . . 5 Catastrophic . | . . . . Database Lockouts . | . . . . Manual 3 | . . . 3 Terminals 8 | . . . 8 Fabricators . | . . . . Repair Stations . | . . . . Recycling Units . | . . . . Scanalyzers . | . . . . Garrison Access 1 | . . . 1 Terminal Hacks 2 | . . . 2 Open Door 2 | . . . 2 Fabricator Hacks . | . . . . Repair Station Hacks . | . . . . Recycling Unit Hacks . | . . . . Scanalyzer . | . . . . Garrison Access Hacks 1 | . . . 1 Seal Access 1 | . . . 1 Unauthorized Hacks 1 | . . . 1 Terminals 1 | . . . 1 Botnet 1 | . . . 1 Fabricators . | . . . . Repair Stations . | . . . . Recycling Units . | . . . . Scanalyzers . | . . . . Garrison Access . | . . . . Data Cores Recovered . | . . . . Used . | . . . . Hacking Detections 2 | . . . 2 Full Trace Events . | . . . . Feedback Events . | . . . . Feedback Blocked . | . . . . Robot Schematics Acquired . | . . . . Robots Built . | . . . . Authchips . | . . . . Time . | . . . . Total Robot Build Rating . | . . . . Part Schematics Acquired . | . . . . Parts Built . | . . . . Authchips . | . . . . Time . | . . . . Total Part Build Rating . | . . . . Part Studies Acquired . | . . . . Parts Repaired . | . . . . Time . | . . . . Parts Recycled . | . . . . Recycled Matter . | . . . . Retrieved Matter . | . . . . Retrieved Components . | . . . . Parts Scanalyzed . | . . . . Part Schematics Acquired . | . . . . Parts Damaged . | . . . . Bothacking | -11 -10 -9 -9 ------------ Run | Yrd Mat Mat Sto Used RIF Installer . | . . . . Robots Hacked . | . . . . Non-combat . | . . . . Combat . | . . . . Robot Hacks Applied . | . . . . Relay Couplers Released . | . . . . Fabnet Peak Effective % . | . . . . Robots Rewired . | . . . . Allies Hacked . | . . . . Hacks Repelled . | . . . . Allies | -11 -10 -9 -9 -------- Run | Yrd Mat Mat Sto Total Allies . | . . . . Largest Group . | . . . . Highest-Rated Group . | . . . . Highest-Rated Ally . | . . . . Total Orders . | . . . . Ally Attacks . | . . . . Total Damage . | . . . . Kills . | . . . . Allies Corrupted . | . . . . Allies Melted . | . . . . Intel | -11 -10 -9 -9 ------- Run | Yrd Mat Mat Sto Active Infowar (turns) 801 | 32 408 200 161 Terrain 360 | . . 199 161 Seismic 774 | 32 408 200 134 Robot Analysis Total . | . . . . Derelict Logs Recovered . | . . . . Drone Launches . | . . . . Drone Recoveries . | . . . . Exploration | -11 -10 -9 -9 ------------- Run | Yrd Mat Mat Sto Turns Passed 1557 | 236 408 200 713 Spaces Moved 704 | 111 221 49 323 Core 7 | 7 . . . Treads 426 | 104 221 49 52 Legs . | . . . . Wheels 271 | . . . 271 Hover . | . . . . Flight . | . . . . Fastest Speed 50 | 50 160 160 95 Average Speed 154 | 153 160 223 141 Slowest Speed 240 | 160 160 240 240 Overloaded Moves . | . . . . Propulsion Burnouts . | . . . . Robots Hopped . | . . . . Potential Cave-ins . | . . . . Cave-ins Triggered . | . . . . Exploration Rate (%) 24 | 5 42 8 41 Regions Visited 3 Branch Regions 1 Pre-discovered Areas . | . . . . Known Exits Taken . | . . . . Unknown Exits Taken 3 | 1 1 1 . Scrap Searched . | . . . . Spaces Dug . | . . . . Terrain Destroyed 116 | . . 83 33 Melee . | . . . . Projectile . | . . . . AOE 116 | . . 83 33 Terrain Rammed . | . . . . Walls Destroyed . | . . . . Machines Disabled . | . . . . Actions | -11 -10 -9 -9 --------- Run | Yrd Mat Mat Sto Total 958 | 145 247 93 473 Wait 57 | . 2 2 53 Move 701 | 110 220 48 323 Hop . | . . . . Pick Up 21 | 8 3 1 9 Fast Attach 9 | 7 . . 2 Attach 13 | . . 4 9 Detach . | . . . . Swap 10 | . 4 . 6 Drop 7 | 4 2 . 1 Fire 78 | 15 5 26 32 Melee 61 | . 11 12 38 Ram . | . . . . Kick . | . . . . Crush 1 | 1 . . . Escape Stasis . | . . . . Rewire . | . . . . Trap . | . . . . Miscellaneous . | . . . . Route ------- -11/Scrapyard -10/Materials -9/Materials -9/Storage History --------- Turn | Location | Event 10 | -11/Scrapyard | Discovered new exit (range 15) 237 | -11/Scrapyard | Entered Materials 238 | -10/Materials | Met a group of wandering Federalists 314 | -10/Materials | Build established: Mutant 370 | -10/Materials | Lost 3 allies 637 | -10/Materials | Discovered new exit (range 4) 645 | -10/Materials | Entered another Materials area 645 | -9/Materials | Evolved 2 slots: Utility x2 728 | -9/Materials | Discovered new exit (range 16) 742 | -9/Materials | Lost 3 parts (1p1n1w) 845 | -9/Materials | Entered Storage 1053 | -9/Storage | Core integrity fell below 50% 1062 | -9/Storage | Lost 6 parts (1p1n2u2w) 1121 | -9/Storage | Core integrity fell below 20% 1558 | -9/Storage | Destroyed by Y-45 Defender with Heavy Assault Rifle Last Messages --------------- 01445_ Storage Shell breached. 01445_ K-01 Serf collects debris. 01455_ Acquired 10 matter. 01457_ K-01 Serf collects debris. 01466_ G-34 Mercenary destroyed. 01467_ K-01 Serf collects debris. 01475_ R-06 Scavenger collects Sml. Laser. 01479_ R-06 Scavenger collects Aluminum Leg. 01482_ R-06 Scavenger collects Heat Sink. 01510_ Triggered Explosive Trap. 01510_ An explosion rips through the floor. 01529_ Connecting with Door Terminal... >>Open(Door) Sealed Heavy Doors opened. 01531_ Acquired Prototype Energy Gun. 01532_ Identified Imp. Lightning Gun. 01546_ Lgt. Armor Plating destroyed. 01552_ U-05 Engineer builds a Wall. 01552_ Y-45 Defender suffers critical hit (Smash). Map ----- +----------------------------------------------------+ | | | | | | | | | | | | | | | ????????????????????????????????? | | ?????????###????????????????????? | | ?????????#T####?????????????????? | | ########## ]]#?????????????????? | | + ]]#?????????????????? | | ######## # #?????????????????? | | #??????# ######?????????????????? | | ###????# #??????????????????????? | | # ??# #????##????????????????? | | # # ###### ######??????????? | | #""" + + #?????????? | | #""" #+#### #?????????? | | #""" # #??? #?????????? | | + # #???? #""""?????? | | #### ### #????? """ ## #?????? | | #????# #????? """ #T #?????? | | #????# #??????""" ## ###???? | | [#????# #?????? ## #T###?? | | ###????# #??????#+#+##Y@/ #?? | | #??????#####???##?# #####?? | | #??????######### ## #?????? | | #???? # ######?????? | | #????????" """" # #??????????? | | #????????? """" #??????????? | | #????????? """" #??????????? | | #????????? """" #??????????? | | #????????? # #??????????? | | #????????########## #??????????? | | #??????????######## #??????????? | | ############ #??????????? | | #??????????? | | #####??????????? | | #??????????????? | | ############ #??????????????? | | ???????????## ##??????????????? | | ????????????# #???????????????? | | ????????????+ #???????????????? | | ????????????# #???????????????? | | ????????????# +???????????????? | | ????????????# #???????????????? | | #???????????# #???????????????? | | ????????????# #???????????????? | | ????????????# #???????????????? | +----------------------------------------------------+ Best States ------------- Heat Dissipation 42 Energy Generation 10 Energy Capacity 250 Matter Stores 300 Matter Capacity 300 Sight Range 16 Terrain Scan Range 16 Terrain Scan Density 10 Armor Coverage 450 Evasion (%) 41 Recoil Reduction 2 Item Schematics ----------------- None Robot Schematics ------------------ None Fabricated ------------ Nothing Repaired ---------- Nothing Studied --------- None Alien Tech Used ----------------- None Achievements -------------- None Challenges ------------ None Game ------ Seed ReactionDisassembledNetwork Manual? 0 Play Time 00:17:11 Cumulative 74.4 hours Start 2026.03.20 @ 22:05:45 End 2026.03.21 @ 02:04:58 Sessions 1 Manual Loads 0 Difficulty Rogue Special Mode None Game No. 172 Rogue 172 Adventurer 0 Explorer 0 Win Type - Total 0 Types 0/0/0/0/0/0/0/0/0/0 Lore% 39 Gallery% 44 Achievement% 35 Wizard Run 0 Options --------- Layout 2 ASCII 0 Keyboard 1 Movement Arrows Keybinds 0 Fullscreen 1 Font 24/Smallcaps Map View 50x44 Zoom Use 3% Tactical HUD 1 Map Filters NONE Filters NONE Steam 1 RUN: b25c4a47-48cf-4105-a6c3-9d0239e07ba8